bitfinex-derivatives/quotes_BNBF0:USTF0_20250302
["timestamp","ask_amount","ask_price","bid_price","bid_amount"]
[1740923664318,1.10951466,605.6,605.15,4.05249657]
[1740923664516,1.10951466,605.59,605.15,4.05249657]
[1740923665020,3.0316783,605.73,605.15,4.05249657]
[1740923665322,4.14037995,605.72,605.15,4.05249657]
[1740923665521,3.0316783,605.71,605.15,4.05249657]
[1740923665722,0.98096678,605.85,605.15,4.05249657]
[1740923665723,4.14037995,605.7,605.15,4.05249657]
[1740923665923,3.0316783,605.69,605.15,4.05249657]
[1740923666220,2.70924926,605.68,605.15,4.05249657]
[1740923666420,2.70924926,605.67,605.15,4.05249657]
[1740923666623,1.60054761,605.66,605.15,4.05249657]
[1740923666823,1.60054761,605.65,605.15,4.05249657]
[1740923667019,1.60054761,605.64,605.15,4.05249657]
[1740923667223,1.60054761,605.63,605.15,4.05249657]
[1740923667424,1.60054761,605.62,605.15,4.05249657]
[1740923667623,1.60054761,605.61,605.15,4.05249657]
[1740923667823,1.60054761,605.6,605.15,4.05249657]
[1740923668022,2.70924926,605.59,605.15,4.05249657]
[1740923668223,2.70924926,605.58,605.15,4.05249657]
[1740923668419,1.60054761,605.57,605.15,4.05249657]
[1740923668624,2.70924926,605.56,605.15,4.05249657]
[1740923668824,1.10870165,605.56,605.15,4.05249657]
[1740923669324,1.10870165,605.55,605.15,4.05249657]
[1740923669929,3.03045339,605.67,605.15,4.05249657]
[1740923670127,1.5993227,605.66,605.15,4.05249657]
[1740923670426,1.5993227,605.65,605.15,4.05249657]
[1740923670624,1.5993227,605.64,605.15,4.05249657]
[1740923670824,1.5993227,605.63,605.15,4.05249657]
[1740923671018,1.5993227,605.62,605.15,4.05249657]
[1740923671222,1.5993227,605.61,605.15,4.05249657]
[1740923671422,1.10783622,605.61,605.15,4.05249657]
[1740923671627,1.59903728,605.6,605.15,4.05249657]
[1740923671828,1.59903728,605.59,605.15,4.05249657]
[1740923672031,1.10783622,605.59,605.15,4.05249657]
[1740923672626,1.10783622,605.58,605.15,4.05249657]
[1740923673326,2.70672753,605.57,605.15,4.05249657]
[1740923673533,1.5986325,605.56,605.15,4.05249657]
[1740923673733,1.10783622,605.55,605.15,4.05249657]
[1740923674327,1.10783622,605.54,605.15,4.05249657]
[1740923674930,3.02978125,605.67,605.15,4.05249657]
[1740923675133,1.59865056,605.66,605.15,4.05249657]
[1740923675331,1.59865056,605.65,605.15,4.05249657]
[1740923675527,1.59865056,605.64,605.15,4.05249657]
[1740923675732,1.59865056,605.63,605.15,4.05249657]
[1740923676027,1.59865056,605.62,605.15,4.05249657]
[1740923676231,1.59865056,605.61,605.15,4.05249657]
[1740923676427,2.70599116,605.6,605.15,4.05249657]
[1740923676628,1.59865056,605.59,605.15,4.05249657]
[1740923676828,2.70599116,605.58,605.15,4.05249657]
[1740923677027,1.59865056,605.57,605.15,4.05249657]
[1740923677227,1.59865056,605.56,605.15,4.05249657]
[1740923677430,2.70599116,605.55,605.15,4.05249657]
[1740923677627,1.59865056,605.54,605.15,4.05249657]
[1740923677827,1.59865056,605.53,605.15,4.05249657]
[1740923678029,1.1073406,605.52,605.15,4.05249657]
[1740923678426,2.70599116,605.52,605.15,0.33049657]
[1740923678627,2.70479525,605.51,605.15,0.33049657]
[1740923678828,1.59745465,605.5,605.15,0.33049657]
[1740923679226,2.70479525,605.49,605.15,0.33049657]
[1740923679427,1.1073406,605.49,605.15,0.33049657]
[1740923679627,1.5970319,605.48,605.15,0.33049657]
[1740923679827,1.1073406,605.48,605.15,0.33049657]
[1740923680432,1.1073406,605.47,605.15,0.33049657]
[1740923681129,1.1073406,605.46,605.15,0.33049657]
[1740923681332,1.1073406,605.45,605.15,0.33049657]
[1740923682127,1.59659239,605.51,605.15,0.33049657]
[1740923682331,1.59659239,605.5,605.15,0.33049657]
[1740923682532,1.59659239,605.49,605.15,0.33049657]
[1740923682735,1.1073406,605.49,605.15,0.33049657]
[1740923683233,1.1073406,605.5,605.15,0.33049657]
[1740923683733,1.1073406,605.49,605.15,0.33049657]
[1740923684132,1.1073406,605.48,605.15,0.33049657]
[1740923684729,3.02394033,605.53,605.15,0.33049657]
[1740923684936,1.59659239,605.52,605.15,0.33049657]
[1740923685135,1.59659239,605.54,605.15,0.33049657]
[1740923685333,1.1073406,605.53,605.15,0.33049657]
[1740923685733,2.70393299,605.62,605.15,0.33049657]
[1740923685928,1.59659239,605.61,605.15,0.33049657]
[1740923686132,2.70393299,605.6,605.15,0.33049657]
[1740923686334,1.59659239,605.59,605.15,0.33049657]
[1740923686530,1.1073406,605.58,605.15,0.33049657]
[1740923687140,1.1073406,605.57,605.15,0.33049657]
[1740923687531,1.1073406,605.56,605.15,0.33049657]
[1740923688037,1.42620831,605.64,605.15,0.33049657]
[1740923688038,1.1073406,605.55,605.15,0.33049657]
[1740923688433,2.70393299,605.55,605.15,0.33049657]
[1740923688634,1.59659239,605.54,605.15,0.33049657]
[1740923689238,1.1073406,605.53,605.15,0.33049657]
[1740923689444,2.70393299,605.53,605.15,0.33049657]
[1740923689642,1.59659239,605.52,605.15,0.33049657]
[1740923689844,1.59659239,605.59,605.15,0.33049657]
[1740923690043,1.59659239,605.6,605.15,0.33049657]
[1740923690344,1.1073406,605.58,605.15,0.33049657]
[1740923690544,1.59659239,605.58,605.15,0.33049657]
[1740923691041,1.1073406,605.57,605.15,0.33049657]
[1740923691643,1.1073406,605.56,605.15,0.33049657]
[1740923692442,1.1073406,605.55,605.15,0.33049657]
[1740923692846,1.594679,605.56,605.15,0.33049657]
[1740923693140,1.72485719,605.65,605.15,0.33049657]
[1740923693141,1.1073406,605.55,605.15,0.33049657]
[1740923693744,1.594679,605.61,605.15,0.33049657]
[1740923693946,1.594679,605.6,605.15,0.33049657]
[1740923694248,1.1073406,605.6,605.15,0.33049657]
[1740923694448,2.7020196,605.6,605.15,0.33049657]
[1740923694751,2.7020196,605.59,605.15,0.33049657]
[1740923694952,2.7020196,605.58,605.15,0.33049657]
[1740923695148,1.594679,605.57,605.15,0.33049657]
[1740923695349,1.1073406,605.58,605.15,0.33049657]
[1740923695549,1.1073406,605.57,605.15,0.33049657]
[1740923696053,1.1073406,605.56,605.15,0.33049657]
[1740923696545,1.1073406,605.55,605.15,0.33049657]
[1740923697053,2.7020196,605.62,605.15,0.33049657]
[1740923697250,1.1073406,605.62,605.15,0.33049657]
[1740923697451,1.59477195,605.61,605.15,0.33049657]
[1740923697651,2.70211255,605.61,605.15,0.33049657]
[1740923697851,1.59477195,605.6,605.15,0.33049657]
[1740923698046,2.70211255,605.6,605.15,0.33049657]
[1740923698251,1.59477195,605.59,605.15,0.33049657]
[1740923698452,1.1073406,605.6,605.15,0.33049657]
[1740923698652,1.1073406,605.58,605.15,0.33049657]
[1740923698853,1.1073406,605.57,605.15,0.33049657]
[1740923699556,1.1073406,605.56,605.15,0.33049657]
[1740923700150,1.1073406,605.55,605.15,0.33049657]
[1740923700757,1.1073406,605.54,605.15,0.33049657]
[1740923701250,1.59552536,605.56,605.15,0.33049657]
[1740923701555,1.59552536,605.55,605.15,0.33049657]
[1740923701757,1.1073406,605.54,605.15,0.33049657]
[1740923702552,1.1073406,605.53,605.15,0.33049657]
[1740923703159,2.70286596,605.52,605.15,0.33049657]
[1740923703359,1.59552536,605.51,605.15,0.33049657]
[1740923703557,1.59552536,605.5,605.15,0.33049657]
[1740923703759,0.97805913,605.69,605.15,0.33049657]
[1740923703760,1.1073406,605.49,605.15,0.33049657]
[1740923704160,1.1073406,605.48,605.15,0.33049657]
[1740923704460,1.59552536,605.47,605.15,0.33049657]
[1740923704759,1.59552536,605.46,605.15,0.33049657]
[1740923704959,1.59552536,605.45,605.15,0.33049657]
[1740923705154,1.59552536,605.44,605.15,0.33049657]
[1740923705365,2.70286596,605.43,605.15,0.33049657]
[1740923705658,2.70286596,605.42,605.15,0.33049657]
[1740923705859,1.59552536,605.41,605.15,0.33049657]
[1740923706061,1.59552536,605.4,605.15,0.33049657]
[1740923706260,1.59552536,605.39,605.15,0.33049657]
[1740923706455,2.70286596,605.38,605.15,0.33049657]
[1740923706656,1.59552536,605.37,605.15,0.33049657]
[1740923706858,1.59552536,605.36,605.15,0.33049657]
[1740923707160,1.1073406,605.35,605.15,0.33049657]
[1740923707360,1.59552536,605.34,605.15,0.33049657]
[1740923707557,1.59552536,605.33,605.15,0.33049657]
[1740923707860,1.59552536,605.32,605.09,0.558]
[1740923708059,1.59552536,605.31,605.09,0.558]
[1740923708260,1.59552536,605.3,605.09,0.558]
[1740923708460,1.59552536,605.29,605.09,0.558]
[1740923708760,1.59552536,605.28,605.09,0.558]
[1740923708955,1.59552536,605.27,605.09,0.558]
[1740923709160,1.59552536,605.28,605.09,0.558]
[1740923709358,1.1073406,605.27,605.09,0.558]
[1740923709758,2.70380307,605.36,605.09,0.558]
[1740923709957,1.59646247,605.35,605.09,0.558]
[1740923710157,1.1073406,605.34,605.09,0.558]
[1740923710859,1.59658559,605.46,605.09,0.558]
[1740923711062,1.59658559,605.45,605.09,0.558]
[1740923711263,1.59658559,605.44,605.09,0.558]
[1740923711562,2.70392619,605.43,605.09,0.558]
[1740923711762,1.59658559,605.42,605.09,0.558]
[1740923711963,1.59658559,605.41,605.09,0.558]
[1740923712163,1.59658559,605.4,605.09,0.558]
[1740923712363,1.59658559,605.39,605.09,0.558]
[1740923712563,1.59658559,605.38,605.09,0.558]
[1740923712862,2.70392619,605.37,605.09,0.558]
[1740923713056,1.59658559,605.36,605.09,0.558]
[1740923713457,1.1073406,605.35,605.09,0.558]
[1740923713662,1.1073406,605.34,605.09,0.558]
[1740923714258,1.1073406,605.33,605.09,0.558]
[1740923714763,1.72528476,605.5,605.09,0.558]
[1740923714764,1.1073406,605.32,605.09,0.558]
[1740923715163,4.13191903,605.42,605.09,0.558]
[1740923715464,4.13191903,605.41,605.09,0.558]
[1740923715664,1.59658559,605.4,605.09,0.558]
[1740923715860,2.70392619,605.4,605.09,0.558]
[1740923716166,2.70392619,605.39,605.09,0.558]
[1740923716364,1.1073406,605.39,605.09,0.558]
[1740923716667,1.1073406,605.38,605.09,0.558]
[1740923717067,1.1073406,605.37,605.09,0.558]
[1740923717765,1.1073406,605.41,605.09,0.558]
[1740923718262,1.59747155,605.45,605.09,0.558]
[1740923718465,2.70481215,605.45,605.09,0.558]
[1740923718666,1.59747155,605.44,605.09,0.558]
[1740923718966,1.1073406,605.45,605.09,0.558]
[1740923719266,2.70481215,605.44,605.09,0.558]
[1740923719459,1.59747155,605.43,605.09,0.558]
[1740923719658,1.59779937,605.43,605.09,0.558]
[1740923719862,1.72510658,605.65,605.09,0.558]
[1740923719863,1.1073406,605.42,605.09,0.558]
[1740923720566,2.70563255,605.49,605.09,0.558]
[1740923720768,1.59829195,605.48,605.09,0.558]
[1740923721065,2.70563255,605.47,605.09,0.558]
[1740923721264,1.59829195,605.46,605.09,0.558]
[1740923721863,1.1073406,605.45,605.09,0.558]
[1740923722058,2.70604934,605.45,605.09,0.558]
[1740923722262,1.1073406,605.44,605.09,0.558]
[1740923722665,1.1073406,605.43,605.09,0.558]
[1740923723061,1.59885769,605.5,605.09,0.558]
[1740923723369,1.59885769,605.49,605.09,0.558]
[1740923723568,1.59885769,605.48,605.09,0.558]
[1740923723768,1.59885769,605.47,605.09,0.558]
[1740923723969,1.59885769,605.46,605.09,0.558]
[1740923724169,1.59885769,605.45,605.09,0.558]
[1740923724469,1.59930164,605.44,605.09,0.558]
[1740923724668,1.59930164,605.43,605.09,0.558]
[1740923724968,1.10763523,605.42,605.09,0.558]
[1740923725561,3.02895334,605.51,605.09,0.558]
[1740923725770,1.59941608,605.5,605.09,0.558]
[1740923725962,1.59941608,605.49,605.09,0.558]
[1740923726162,1.59941608,605.48,605.09,0.558]
[1740923726363,1.59941608,605.47,605.09,0.558]
[1740923726563,1.59941608,605.46,605.09,0.558]
[1740923726869,1.59941608,605.45,604.91,1.924]
[1740923727068,1.59941608,605.44,604.92,0.33062223]
[1740923727269,1.59941608,605.43,604.92,0.33062223]
[1740923727567,1.10820172,605.43,604.92,0.33062223]
[1740923728070,1.10820172,605.42,604.92,0.33062223]
[1740923728471,1.10820172,605.41,604.92,0.33062223]
[1740923728868,1.42953726,605.52,604.92,0.33062223]
[1740923729169,4.14105961,605.51,604.92,0.33062223]
[1740923729369,3.03138519,605.5,604.92,0.33062223]
[1740923729570,1.60184793,605.49,604.92,0.33062223]
[1740923729769,1.60184793,605.48,604.92,0.33062223]
[1740923729972,1.60184793,605.47,604.92,2.61562223]
[1740923730165,1.60184793,605.46,604.92,2.61562223]
[1740923730367,1.60184793,605.45,604.92,2.61562223]
[1740923730568,1.60184793,605.44,604.92,2.61562223]
[1740923730768,1.10967442,605.44,604.92,2.61562223]
[1740923731074,1.60231638,605.43,604.92,2.61562223]
[1740923731274,1.10967442,605.44,604.92,2.61562223]
[1740923731475,2.71230714,605.43,604.92,2.61562223]
[1740923731674,1.10967442,605.43,604.92,2.61562223]
[1740923731870,1.10967442,605.42,604.92,2.61562223]
[1740923732271,1.10967442,605.41,604.92,2.61562223]
[1740923732972,1.10967442,605.4,604.92,2.61562223]
[1740923733675,1.4326487,605.5,604.92,2.61562223]
[1740923733879,3.03582428,605.49,604.92,2.61562223]
[1740923734179,4.14642644,605.48,604.92,2.61562223]
[1740923734377,3.03582428,605.47,604.92,2.61562223]
[1740923734577,3.03684794,605.46,604.92,2.61562223]
[1740923734771,2.71393002,605.45,604.92,2.61562223]
[1740923734977,1.60332786,605.44,604.92,2.61562223]
[1740923735174,2.71393002,605.43,604.92,2.61562223]
[1740923735378,1.11060216,605.43,604.92,2.61562223]
[1740923735576,0.98265038,605.63,604.92,2.61562223]
[1740923735577,1.11060216,605.42,604.92,2.61562223]
[1740923736277,1.11060216,605.41,604.92,2.61562223]
[1740923737098,1.11060216,605.4,604.92,2.61562223]
[1740923737685,1.4335218,605.5,604.92,2.61562223]
[1740923737988,4.14797961,605.49,604.92,2.61562223]
[1740923738186,3.03710198,605.48,604.92,2.61562223]
[1740923738381,4.14797961,605.47,604.92,2.61562223]
[1740923738582,3.03736369,605.46,604.92,2.61562223]
[1740923738782,2.71445781,605.45,604.92,2.61562223]
[1740923738988,1.60358018,605.44,604.92,2.61562223]
[1740923739185,1.11087763,605.45,604.92,2.61562223]
[1740923739386,3.03759053,605.61,604.92,2.61562223]
[1740923739587,3.03759053,605.6,604.92,2.61562223]
[1740923739786,1.60380529,605.59,604.92,2.61562223]
[1740923739988,1.60380529,605.58,604.92,2.61562223]
[1740923740188,1.60380529,605.57,604.92,2.61562223]
[1740923740388,1.60380529,605.56,604.92,2.61562223]
[1740923740592,1.11101965,605.6,604.92,2.61562223]
[1740923740593,1.60380529,605.55,604.92,2.61562223]
[1740923740891,1.11101965,605.55,604.92,2.61562223]
[1740923741184,1.11101965,605.54,604.92,4.21362223]
[1740923741790,1.11101965,605.53,604.92,4.21362223]
[1740923742189,1.43378524,605.7,604.92,4.21362223]
[1740923742486,3.03619218,605.69,604.92,4.21362223]
[1740923742690,3.03619218,605.68,604.92,4.21362223]
[1740923742890,3.03619218,605.67,604.92,4.21362223]
[1740923743190,3.03619218,605.66,604.92,4.21362223]
[1740923743390,3.03619218,605.65,604.92,4.21362223]
[1740923743591,3.03619218,605.64,604.92,4.21362223]
[1740923743885,3.03619218,605.63,604.92,4.21362223]
[1740923744090,3.03619218,605.62,604.92,4.21362223]
[1740923744390,3.03619218,605.61,604.92,4.21362223]
[1740923744591,3.03619218,605.6,604.92,4.21362223]
[1740923744791,3.03619218,605.59,604.92,4.21362223]
[1740923744992,1.60301147,605.58,604.92,4.21362223]
[1740923745292,1.60301147,605.57,604.92,4.21362223]
[1740923745493,2.71337853,605.56,604.92,4.21362223]
[1740923745694,1.60301147,605.55,604.92,4.21362223]
[1740923745888,1.60301147,605.54,604.92,4.21362223]
[1740923746088,1.60301147,605.53,604.92,4.21362223]
[1740923746394,1.60301147,605.52,604.92,4.21362223]
[1740923746695,1.60249405,605.51,604.92,4.21362223]
[1740923746891,1.11036706,605.51,604.92,4.21362223]
[1740923747693,1.11036706,605.5,604.92,4.21362223]
[1740923748489,1.11036706,605.49,604.92,4.21362223]
[1740923749295,1.60236535,605.59,604.92,4.21362223]
[1740923749596,2.71232864,605.58,604.92,4.21362223]
[1740923749788,1.60236535,605.57,604.92,4.21362223]
[1740923749991,1.60236535,605.56,604.92,4.21362223]
[1740923750193,1.60236535,605.55,604.92,4.21362223]
[1740923750392,1.60236535,605.54,604.92,4.21362223]
[1740923750596,1.60236535,605.53,604.92,4.21362223]
[1740923750790,1.60236535,605.52,604.92,4.21362223]
[1740923750996,1.60236535,605.51,604.92,4.21362223]
[1740923751195,1.60236535,605.5,604.92,4.21362223]
[1740923751389,1.60236535,605.49,604.92,4.21362223]
[1740923751590,1.60236535,605.48,604.92,4.21362223]
[1740923751789,1.60236535,605.47,604.92,4.21362223]
[1740923751989,1.60236535,605.46,604.92,4.21362223]
[1740923752195,1.60236535,605.45,604.92,4.21362223]
[1740923752496,1.60236535,605.44,604.92,4.21362223]
[1740923752695,1.60236535,605.43,604.92,4.21362223]
[1740923752902,1.60236535,605.42,604.92,4.21362223]
[1740923753100,1.60236535,605.41,604.92,4.21362223]
[1740923753297,1.60236535,605.4,604.92,4.21362223]
[1740923753601,1.60236535,605.39,604.92,4.21362223]
[1740923753900,1.60236535,605.38,604.92,4.21362223]
[1740923754105,1.10996329,605.37,604.92,4.21362223]
[1740923754797,1.10996329,605.36,604.92,4.21362223]
[1740923755197,1.10996329,605.35,604.92,4.21362223]
[1740923755703,1.10996329,605.34,604.92,4.21362223]
[1740923756106,1.10996329,605.33,604.92,4.21362223]
[1740923756600,1.60143321,605.49,604.92,4.21362223]
[1740923756800,1.60143321,605.48,604.92,4.21362223]
[1740923757002,1.60143321,605.47,604.92,4.21362223]
[1740923757197,2.71087444,605.46,604.92,4.21362223]
[1740923757401,1.60143321,605.45,604.92,4.21362223]
[1740923757599,1.60143321,605.44,604.92,4.21362223]
[1740923757903,2.71087444,605.43,604.92,4.21362223]
[1740923758106,1.60143321,605.42,604.92,4.21362223]
[1740923758307,1.10944123,605.43,604.92,4.21362223]
[1740923758308,1.60143321,605.41,604.92,4.21362223]
[1740923758506,1.60143321,605.4,604.92,4.21362223]
[1740923758804,2.71087444,605.39,604.92,4.21362223]
[1740923759000,1.60143321,605.38,604.92,4.21362223]
[1740923759199,1.10944123,605.39,604.92,4.21362223]
[1740923759402,1.10944123,605.37,604.92,4.21362223]
[1740923760200,1.10944123,605.36,604.92,4.21362223]
[1740923760904,1.10944123,605.35,604.92,4.21362223]
[1740923761705,3.0313532,605.47,604.92,4.21362223]
[1740923762006,1.60046246,605.46,604.92,4.21362223]
[1740923762207,1.60046246,605.45,604.92,4.21362223]
[1740923762400,0.98087132,605.67,604.92,4.21362223]
[1740923762401,2.70926071,605.44,604.92,4.21362223]
[1740923762601,1.60046246,605.43,604.92,4.21362223]
[1740923762800,2.70926071,605.42,604.92,4.21362223]
[1740923763000,1.60046246,605.41,604.92,4.21362223]
[1740923763206,1.60046246,605.4,604.92,4.21362223]
[1740923763503,1.60046246,605.39,604.92,4.21362223]
[1740923763707,1.60063631,605.38,604.92,4.21362223]
[1740923764008,2.70943456,605.37,604.92,4.21362223]
[1740923764201,1.10879825,605.37,604.92,4.21362223]
[1740923764407,1.10879825,605.36,604.92,4.21362223]
[1740923765106,1.10879825,605.35,604.92,4.21362223]
[1740923765906,1.10879825,605.34,604.92,4.21362223]
[1740923766308,3.03185564,605.57,604.92,4.21362223]
[1740923766508,3.03185564,605.56,604.92,4.21362223]
[1740923766706,3.03185564,605.55,604.92,4.21362223]
[1740923766910,3.03185564,605.54,604.92,4.21362223]
[1740923767113,4.14101405,605.53,604.92,4.21362223]
[1740923767307,3.03185564,605.52,604.92,4.21362223]
[1740923767506,3.03185564,605.51,604.92,4.21362223]
[1740923767706,3.03281894,605.5,604.92,4.21362223]
[1740923767904,3.03281894,605.49,604.92,4.21362223]
[1740923768105,3.03281894,605.48,604.92,4.21362223]
[1740923768312,3.03281894,605.47,604.92,4.21362223]
[1740923768514,3.03281894,605.46,604.92,4.21362223]
[1740923768807,0.98138573,605.53,604.92,4.21362223]
[1740923768808,4.14197735,605.45,604.92,4.21362223]
[1740923769010,3.03281894,605.44,604.92,4.21362223]
[1740923769311,3.03281894,605.43,604.92,4.21362223]
[1740923769611,3.03281894,605.42,604.92,4.21362223]
[1740923769812,3.03281894,605.41,604.92,4.21362223]
[1740923770013,3.03281894,605.4,604.92,4.21362223]
[1740923770207,4.14197735,605.39,604.92,4.21362223]
[1740923770406,3.03281894,605.38,604.92,4.21362223]
[1740923770710,4.14197735,605.37,604.92,4.21362223]
[1740923770909,3.03281894,605.36,604.92,4.21362223]
[1740923771107,1.60117884,605.35,604.92,4.21362223]
[1740923771314,1.60117884,605.34,604.92,4.21362223]
[1740923771506,1.60117884,605.33,604.92,4.21362223]
[1740923771708,2.71033725,605.32,604.92,4.21362223]
[1740923771909,1.60117884,605.31,604.92,4.21362223]
[1740923772106,1.60117884,605.3,604.92,4.21362223]
[1740923772408,2.71033725,605.29,604.92,4.21362223]
[1740923772608,2.71033725,605.28,604.92,4.21362223]
[1740923772806,1.60117884,605.27,604.92,0.33062223]
[1740923773009,1.10915841,605.26,604.92,0.33062223]
[1740923773611,1.10915841,605.25,604.92,0.33062223]
[1740923774005,1.10915841,605.24,604.92,0.33062223]
[1740923774710,1.10915841,605.23,604.92,0.33062223]
[1740923775211,1.10915841,605.22,604.92,0.33062223]
[1740923775411,1.43267158,605.37,604.92,0.33062223]
[1740923775706,3.03538117,605.36,604.92,0.33062223]
[1740923775913,4.14557851,605.35,604.92,3.53962223]
[1740923776112,3.03538117,605.34,604.92,3.53962223]
[1740923776310,1.60250391,605.33,604.92,3.53962223]
[1740923776612,1.60250391,605.32,604.92,3.53962223]
[1740923776912,1.60250391,605.31,604.92,3.53962223]
[1740923777111,2.71249452,605.3,604.92,3.53962223]
[1740923777311,1.60229718,605.29,604.92,3.53962223]
[1740923777506,1.60229718,605.28,604.92,3.53962223]
[1740923777709,1.60229718,605.27,604.92,3.53962223]
[1740923777909,1.60229718,605.26,604.92,3.53962223]
[1740923778205,1.60229718,605.25,604.92,3.53962223]
[1740923778407,1.11019734,605.26,604.92,3.53962223]
[1740923778608,1.60196883,605.25,604.92,3.53962223]
[1740923778812,1.11019734,605.25,604.92,3.53962223]
[1740923779511,1.11019734,605.24,604.92,3.53962223]
[1740923780707,1.11019734,605.23,604.92,3.53962223]
[1740923781112,3.03387693,605.42,604.92,3.53962223]
[1740923781307,4.14347662,605.41,604.92,3.53962223]
[1740923781508,3.03387693,605.4,604.92,3.53962223]
[1740923781712,3.03387693,605.39,604.92,3.53962223]
[1740923782011,4.14347662,605.38,604.92,3.53962223]
[1740923782211,3.03387693,605.37,604.92,3.53962223]
[1740923782407,3.03387693,605.36,604.92,3.53962223]
[1740923782616,1.60167794,605.35,604.92,3.53962223]
[1740923782815,2.71127763,605.34,604.92,3.53962223]
[1740923783014,2.71127763,605.33,604.92,3.53962223]
[1740923783208,1.60167794,605.32,604.92,3.53962223]
[1740923783410,1.60167794,605.31,604.92,3.53962223]
[1740923783610,1.60167794,605.3,604.92,3.53962223]
[1740923783816,1.60167794,605.29,604.92,3.53962223]
[1740923784114,2.71127763,605.28,604.92,3.53962223]
[1740923784315,1.60167794,605.27,604.92,3.53962223]
[1740923784511,1.10959969,605.26,604.92,3.53962223]
[1740923785115,1.10959969,605.25,604.92,3.53962223]
[1740923785508,1.60108792,605.33,604.92,3.53962223]
[1740923785710,1.60103437,605.32,604.92,3.53962223]
[1740923785914,2.71022494,605.31,604.92,3.53962223]
[1740923786115,1.60103437,605.3,604.92,3.53962223]
[1740923786314,1.60103437,605.29,604.92,3.53962223]
[1740923786516,2.71022494,605.28,604.92,3.53962223]
[1740923786716,1.6009505,605.27,604.92,3.53962223]
[1740923787016,1.10919057,605.26,604.92,3.53962223]
[1740923787612,1.72545585,605.46,604.92,3.53962223]
[1740923787613,1.43184863,605.45,604.92,3.53962223]
[1740923787810,3.03251445,605.44,604.92,3.53962223]
[1740923788011,4.14145144,605.43,604.92,3.53962223]
[1740923788214,3.03251445,605.42,604.92,3.53962223]
[1740923788518,3.03251445,605.41,604.92,3.53962223]
[1740923788717,3.03251445,605.4,604.92,3.53962223]
[1740923788911,3.03251445,605.39,604.92,3.53962223]
[1740923789114,3.03251445,605.38,604.92,3.53962223]
[1740923789316,4.14145144,605.37,604.92,3.53962223]
[1740923789611,3.03251445,605.36,604.92,3.53962223]
[1740923789917,3.03251445,605.35,604.92,3.53962223]
[1740923790115,1.60066582,605.34,604.92,3.53962223]
[1740923790312,1.60066582,605.33,604.92,3.53962223]
[1740923790511,1.60066582,605.32,604.92,3.53962223]
[1740923790716,1.60066582,605.31,604.92,3.53962223]
[1740923790916,1.60066582,605.3,604.92,3.53962223]
[1740923791112,2.70960281,605.29,604.92,3.53962223]
[1740923791316,1.60066582,605.28,604.92,3.53962223]
[1740923791517,1.72532753,605.46,604.92,3.53962223]
[1740923791518,2.70960281,605.27,604.92,2.11362223]
[1740923791718,1.10893699,605.27,604.92,2.11362223]
[1740923791919,1.10893699,605.26,604.92,0.88962223]
[1740923792517,3.0319889,605.42,604.92,0.88962223]
[1740923792715,3.0319889,605.41,604.92,0.88962223]
[1740923792914,3.0319889,605.4,604.92,0.88962223]
[1740923793214,4.14049604,605.39,604.92,0.88962223]
[1740923793518,3.0319889,605.38,604.92,0.88962223]
[1740923793715,3.03189239,605.37,604.92,0.88962223]
[1740923793917,1.60004376,605.36,604.92,0.88962223]
[1740923794117,2.70855452,605.35,604.92,0.88962223]
[1740923794319,1.60004376,605.34,604.92,0.88962223]
[1740923794520,2.70855452,605.33,604.92,0.88962223]
[1740923794820,1.60004376,605.32,604.92,2.23062223]
[1740923795017,2.70855452,605.31,604.92,3.62262223]
[1740923795217,1.60004376,605.3,604.92,3.62262223]
[1740923795415,1.60004376,605.29,604.92,3.62262223]
[1740923795622,1.60004376,605.28,604.92,3.62262223]
[1740923795921,1.10851076,605.28,604.92,3.06362223]
[1740923796321,1.10851076,605.27,604.92,3.06362223]
[1740923796723,1.10851076,605.26,604.92,3.06362223]
[1740923797022,3.03193843,605.41,604.92,3.06362223]
[1740923797325,4.14045392,605.4,604.92,3.06362223]
[1740923797523,3.03193843,605.39,604.92,3.06362223]
[1740923797723,1.6000898,605.38,604.92,3.06362223]
[1740923797922,1.6000898,605.37,604.92,3.06362223]
[1740923798120,2.70860529,605.36,604.92,3.06362223]
[1740923798321,1.6000898,605.35,604.92,3.06362223]
[1740923798518,2.70860529,605.34,604.92,3.06362223]
[1740923798719,1.6000898,605.33,604.92,3.06362223]
[1740923798916,1.6000898,605.32,604.92,3.62262223]
[1740923799116,1.6000898,605.31,604.92,3.62262223]
[1740923799423,2.70860529,605.3,604.92,3.62262223]
[1740923799625,1.6000898,605.29,604.92,3.62262223]
[1740923799927,1.60020399,605.28,604.92,3.62262223]
[1740923800120,1.10851549,605.28,604.92,3.62262223]
[1740923800319,1.6005032,605.27,604.92,3.62262223]
[1740923800524,1.10851549,605.27,604.92,3.62262223]
[1740923801327,1.10851549,605.26,604.92,3.62262223]
[1740923802227,2.70962155,605.37,604.92,3.62262223]
[1740923802422,1.60110606,605.36,604.92,3.62262223]
[1740923802625,1.60110606,605.35,604.92,3.62262223]
[1740923802826,1.60110606,605.34,604.92,3.62262223]
[1740923803127,1.10851549,605.33,604.92,3.62262223]